[Event "Romanian Superleague 2022"]
[Site "Oradea"]
[Date "2022.09.25"]
[Round "5.3"]
[White "Nanu, Costica-Ciprian"]
[Black "Soltanici, Ruslan"]
[Result "0-1"]
[ECO "E51"]
[WhiteElo "2518"]
[BlackElo "2333"]
[Annotator "TA"]
[PlyCount "66"]
[EventDate "2022.09.21"]
[EventType "team-tourn"]
[EventCountry "ROU"]
[SourceTitle "playchess.com"]
[Source "ChessBase"]
[SourceQuality "1"]
[TimeControl "40/5400+30:1800+30"]

{[%evp 20,66,35,28,30,20,40,29,24,21,13,16,20,18,17,18,17,10,14,14,7,10,17,8,16,-7,-4,-22,-22,-21,-23,-295,-304,-389,-382,-385,-381,-355,-347,-1208,0,-1183,-1165,-1081,-1069,-1058,-1040,-29990,-29991]} 1. d4 {[%emt 0:00:48]} Nf6 {[%emt 0:00:23]} 2. c4 {[%emt 0:00:09]} e6 {[%emt 0:00:11]} 3. Nc3 {[%emt 0:00:08]} Bb4 {[%emt 0:01:09]} 4. Bd2 {[%emt 0:00:28]} O-O {[%emt 0:07:35]} 5. Nf3 {[%emt 0:01:21]} c5 {[%emt 0:05:41]} 6. a3 {[%emt 0:00:15]} Bxc3 {[%emt 0:00:18]} 7. Bxc3 {[%emt 0:00:05]} Ne4 {[%emt 0:01:50]} 8. Rc1 {[%emt 0:00:15]} Nxc3 {[%emt 0:11:40]} 9. Rxc3 {[%emt 0:00:52]} cxd4 {[%emt 0:00:28]} 10. Nxd4 {[%emt 0:00:24]} d5 {[%emt 0:03:04]} 11. e3 {[%emt 0:02:03]} dxc4 {[%emt 0:15:07] E51: Nimzo-Indian: Rubinstein: 4...0-0 5 Nf3 d5.} 12. Bxc4 {[%emt 0:01:54]} ({Much worse is} 12. Rxc4 e5 13. Nf3 Qxd1+ 14. Kxd1 Be6 $11) 12... Qe7 {[%emt 0:02:36]} 13. Qh5 {[%emt 0:08:17]} Bd7 {[%emt 0:07:26] White has an edge.} 14. O-O {[%emt 0:02:03]} Nc6 {[%emt 0:03:50] [#]} 15. Nf3 $146 {[%emt 0:00:08]} ({Predecessor:} 15. Nb3 Rfd8 16. Rfc1 Be8 17. Bd3 h6 18. Qe2 Rd6 19. g3 Ne5 20. Be4 Bc6 21. Bxc6 Nxc6 22. Nc5 Rad8 23. R3c2 Ne5 24. Ne4 {½-½ (24) Stettler,M (2365)-Blauert,J (2375) Germany 1992}) 15... Rfd8 {[%emt 0:02:14]} 16. h3 {[%emt 0:03:22]} Be8 {[%emt 0:07:23]} 17. Rfc1 {[%emt 0:04:27]} h6 {[%emt 0:02:33]} 18. b4 {[%emt 0:00:45]} a6 {[%emt 0:00:30]} 19. Qg4 {[%emt 0:10:02]} Rd6 {[%emt 0:01:16]} 20. Qe4 {[%emt 0:00:28]} Rad8 {[%emt 0:02:56]} 21. Bb3 {[%emt 0:00:21]} Kh8 {[%emt 0:07:01]} 22. Bc2 {[%emt 0:02:26][%csl Gc2][%cal Re4h7]} f5 {[%emt 0:01:13]} 23. Qc4 {[%emt 0:00:37]} Qf6 {[%emt 0:03:33]} 24. Bb3 {[%emt 0:02:24]} Bh5 {[%emt 0:01:33] aiming for ...Bxf3.} 25. Nh2 {[%emt 0:10:40][%mdl 8192] [#]} (25. Qh4 $11 {and White is okay.} Qxh4 26. Nxh4) 25... Ne5 $1 $19 {[%emt 0:03:04]} 26. Qc7 {[%emt 0:07:07]} R6d7 {[%emt 0:00:49][%cal Bd6d7,Bd7d1,Bd1f1][%mdl 32]} 27. Qb6 {[%emt 0:00:20]} Nd3 {[%emt 0:00:20]} 28. R1c2 {[%emt 0:04:39]} Nxb4 {[%emt 0:00:38]} 29. Qxb4 {[%emt 0:01:37]} ({Much weaker is} 29. axb4 Rd1+ 30. Nf1 {[#]} Rxf1+ $1 {[%mdl 512]} 31. Kh2 Rdd1 32. Rc8+ Kh7 33. Rh8+ (33. Qxe6 $2 {gets mated.} Rh1+ 34. Kg3 Qg5#) 33... Kxh8 $19) (29. Rc1 Nd3 30. R1c2) 29... Rd1+ {[%emt 0:00:09]} 30. Nf1 {[%emt 0:00:05] [#]} Rxf1+ {[%emt 0:00:09][%mdl 512]} 31. Kh2 {[%emt 0:00:05]} Rdd1 {[%emt 0:03:26]} 32. Rc8+ {[%emt 0:03:07]} Kh7 {[%emt 0:00:03] ( -> ...Qg5)} 33. g4 {[%emt 0:05:15]} Qh4 {[%emt 0:01:18] Weighted Error Value: White=0.69/Black=0.01 (flawless)} 0-1

[Event "Romanian Superleague 2022"]
[Site "Oradea"]
[Date "2022.09.25"]
[Round "5.4"]
[White "Cosma, Ioan"]
[Black "Rogozenco, Dorian"]
[Result "1/2-1/2"]
[ECO "D15"]
[WhiteElo "2367"]
[BlackElo "2438"]
[Annotator "TA"]
[PlyCount "51"]
[EventDate "2022.09.21"]
[EventType "team-tourn"]
[EventCountry "ROU"]
[SourceTitle "playchess.com"]
[Source "ChessBase"]
[SourceQuality "1"]
[TimeControl "40/5400+30:1800+30"]

{[%evp 11,51,34,26,15,19,12,7,6,-15,13,7,0,0,10,9,-6,-22,0,-5,-213,-138,-144,-119,-93,-89,-101,-81,-109,-87,-91,-89,-57,-47,-47,-47,-45,0,0,0,0,0,0]} 1. d4 {[%emt 0:01:06]} Nf6 {[%emt 0:00:07]} 2. Nf3 {[%emt 0:00:09]} d5 {[%emt 0:00:24]} 3. c4 {[%emt 0:00:15]} c6 {[%emt 0:00:17]} 4. Nc3 {[%emt 0:00:32]} a6 {[%emt 0:00:26]} 5. e3 {[%emt 0:01:36]} b5 {[%emt 0:06:19]} 6. b3 {[%emt 0:00:17]} Bg4 {[%emt 0:01:18]} 7. cxd5 {[%emt 1:30:05] 7.a4 is the modern continuation. D15: Slav Defence: 4 Nc3 a6 and gambit lines after 4 Nc3 dxc4.} cxd5 {[%emt 0:02:54]} 8. h3 {[%emt 0:00:00]} Bxf3 {[%emt 0:01:55]} 9. Qxf3 {[%emt 0:00:00]} e5 {[%emt 0:10:56]} 10. dxe5 {[%emt 0:00:00]} Bb4 {[%emt 0:00:55]} 11. Bd2 {[%emt 0:00:00]} Bxc3 {[%emt 0:00:29]} 12. Bxc3 {[%emt 0:00:00]} Ne4 {[%emt 0:00:04] [#]} 13. e6 $146 {[%emt 0:00:00][%csl Ge6][%cal Rf3f7][%mdl 2048] White is not keeping still} ({Predecessor:} 13. Bb4 Nc6 14. a3 Nxb4 15. axb4 Qc8 16. Kd1 Qc3 {0-1 (16) Eperjesi,L (2152)-Timar Geng,Z (1955) Eger 2016}) 13... Ra7 {[%emt 0:19:25]} 14. Bb4 {[%emt 0:00:00] Strongly threatening Rc1.} Nc6 {[%emt 0:05:16]} 15. e7 $2 {[%emt 0:00:00]} (15. Bd3 $1 $11) 15... Rxe7 {[%emt 0:12:50]} 16. Bxb5 {[%emt 0:00:00]} ({Don't go for} 16. Bxe7 $2 Qa5+ 17. b4 Nxb4 18. Bxb5+ Qxb5 $19) 16... axb5 {[%emt 0:01:32]} 17. Bxe7 {[%emt 0:00:00]} Qxe7 {[%emt 0:13:04]} 18. O-O {[%emt 0:00:00]} O-O {[%emt 0:00:03]} 19. Qe2 {[%emt 0:00:00]} b4 {[%emt 0:02:15]} 20. a3 {[%emt 0:00:00]} h6 {[%emt 0:09:10]} 21. Qb5 {[%emt 0:00:00]} Qd6 {[%emt 0:01:01]} 22. axb4 {[%emt 0:00:00]} Nxb4 {[%emt 0:00:44][%cal Bc6b4,Bb4d3,Bd3c5][%mdl 32]} 23. Qb7 {[%emt 0:00:00]} Kh7 {[%emt 0:06:06]} 24. Ra4 {[%emt 0:00:00] The position is equal.} Nd3 {[%emt 0:02:33] [#] And now ...Ndc5 would win.} 25. Rd4 {[%emt 0:00:00][%csl LRd3,LRd5]} Ndc5 {[%emt 0:00:57] Pair of Knights!} 26. Qxd5 {[%emt 0:00:00] White happily takes the draw.  Weighted Error Value: White=0.15 (very precise) /Black=0.10 (very precise)} 1/2-1/2

[Event "Romanian Superleague 2022"]
[Site "Oradea"]
[Date "2022.09.25"]
[Round "5.5"]
[White "Anton, Teodor"]
[Black "Itkis, Boris"]
[Result "1/2-1/2"]
[ECO "A46"]
[WhiteElo "2454"]
[BlackElo "2332"]
[Annotator "TA"]
[PlyCount "81"]
[EventDate "2022.09.21"]
[EventType "team-tourn"]
[EventCountry "ROU"]
[SourceTitle "playchess.com"]
[Source "ChessBase"]
[SourceQuality "1"]
[TimeControl "40/5400+30:1800+30"]

{[%evp 9,81,0,0,-2,0,0,10,4,18,23,27,30,21,0,1,7,10,24,25,0,4,-16,0,-20,-15,-14,-16,-23,-23,-23,-23,-16,-16,-14,-17,-35,-35,-35,-37,-37,-12,-37,-29,-44,-33,-30,-30,-44,-21,-37,-49,-97,-86,-108,-83,-79,-53,-85,-47,-47,-47,-52,-40,-52,-41,-50,-20,-16,0,-52,-51,-71,-8,-64]} 1. Nf3 {[%emt 0:00:05]} Nf6 {[%emt 0:00:17]} 2. d4 {[%emt 0:00:39]} e6 {[%emt 0:00:23]} 3. Bg5 {[%emt 0:02:50]} h6 {[%emt 0:03:53]} 4. Bh4 {[%emt 0:00:15]} b6 {[%emt 0:02:08]} 5. e3 {[%emt 0:01:19]} Bb7 {[%emt 0:00:05]} 6. a4 {[%emt 0:01:36] [#] A46: 1 d4 Nf6 2 Nf3 e6: Torre, London and Colle Systems.} a6 $146 {[%emt 0:07:55]} ({Predecessor:} 6... Be7 7. a5 c5 8. Nc3 cxd4 9. exd4 bxa5 10. Bd3 Nc6 11. O-O O-O 12. Qe2 Nb4 13. Bb5 a6 {1-0 (55) Yanchenko,R (2467)-Hejazipour,M (2300) Chess.com INT 2020}) 7. Nbd2 {[%emt 0:02:57]} c5 {[%emt 0:01:43]} 8. Be2 {[%emt 0:02:54]} cxd4 {[%emt 0:02:46]} 9. exd4 {[%emt 0:00:12]} Be7 {[%emt 0:00:05]} 10. O-O {[%emt 0:00:36]} O-O {[%emt 0:01:34]} 11. Re1 {[%emt 0:01:05]} Nc6 {[%emt 0:05:49]} 12. Bf1 {[%emt 0:00:31]} Nh5 {[%emt 0:00:27]} 13. Bxe7 {[%emt 0:01:30]} Nxe7 {[%emt 0:00:07]} 14. Nc4 {[%emt 0:04:01]} Nf6 {[%emt 0:07:50]} 15. Qd3 {[%emt 0:08:06]} Qc7 {[%emt 0:02:15]} 16. a5 {[%emt 0:03:50]} b5 {[%emt 0:00:15]} 17. Nb6 {[%emt 0:00:20]} Rab8 {[%emt 1:01:28]} 18. c3 {[%emt 0:10:53]} Ned5 {[%emt 0:00:00]} 19. Nxd5 {[%emt 0:00:10]} Bxd5 {[%emt 0:00:00]} 20. Nd2 {[%emt 0:00:28]} Rfc8 {[%emt 0:00:00]} 21. Rec1 {[%emt 0:00:31]} Bc4 {[%emt 0:00:00]} 22. Qg3 {[%emt 0:02:57]} Qxg3 {[%emt 0:00:00]} (22... g6 {looks sharper.} 23. Qf3 Kg7 24. Bd3 Qd6) 23. hxg3 {[%emt 0:00:05]} Bxf1 {[%emt 0:00:00]} 24. Kxf1 {[%emt 0:54:40]} Nd5 {[%emt 0:00:00]} 25. Ke2 {[%emt 0:00:00]} Rc6 {[%emt 0:04:00]} 26. Ne4 {[%emt 0:01:00]} d6 {[%emt 0:00:30]} 27. f3 {[%emt 0:00:30]} Rbc8 {[%emt 0:00:00]} 28. Kd2 {[%emt 0:00:00]} f5 {[%emt 0:00:00]} 29. Nf2 {[%emt 0:00:00]} b4 {[%emt 0:00:00][%cal Rb4c3]} 30. Nd1 {[%emt 0:00:00]} (30. Nd3 $15 {should be considered.} bxc3+ 31. bxc3) 30... Kf7 {[%emt 0:00:00]} 31. Kd3 {[%emt 0:00:00]} bxc3 {[%emt 0:00:00]} 32. bxc3 {[%emt 0:00:00]} e5 {[%emt 0:00:00]} 33. Rab1 {[%emt 0:00:00]} exd4 {[%emt 0:00:00]} 34. c4 {[%emt 0:00:00]} Rc5 {[%emt 0:00:00]} 35. Kxd4 {[%emt 0:00:00]} Ne7 {[%emt 0:00:00]} 36. Ne3 {[%emt 0:00:00]} Nc6+ {[%emt 0:00:00]} 37. Kd3 {[%emt 0:00:00]} Ne5+ {[%emt 0:00:00]} 38. Kd4 {[%emt 0:00:00]} Nc6+ {[%emt 0:00:00]} 39. Kd3 {[%emt 0:00:00]} Nxa5 {[%emt 0:06:30]} 40. f4 Nc6 {[%emt 0:00:30]} (40... g6 $17) 41. Nd5 {Weighted Error Value: White=0.08 (flawless) /Black=0.11 (very precise)} ({White should play} 41. Rb7+ $11 Kf8 42. Rcb1) 1/2-1/2

[Event "Romanian Superleague 2022"]
[Site "Oradea"]
[Date "2022.09.25"]
[Round "5.6"]
[White "Bulau, Andrei-Cristian"]
[Black "Antal, Hunor-Zoltan"]
[Result "1/2-1/2"]
[ECO "D26"]
[WhiteElo "2183"]
[BlackElo "2235"]
[Annotator "TA"]
[PlyCount "48"]
[EventDate "2022.09.21"]
[EventType "team-tourn"]
[EventCountry "ROU"]
[SourceTitle "playchess.com"]
[Source "ChessBase"]
[SourceQuality "1"]
[TimeControl "40/5400+30:1800+30"]

{[%evp 12,48,37,8,26,10,21,7,1,0,0,-18,-15,-11,-14,-21,-6,-6,0,-11,0,-8,0,0,46,43,63,13,56,42,200,139,154,66,43,54,48,64,53]} 1. d4 {[%emt 0:00:07]} d5 {[%emt 0:00:21]} 2. c4 {[%emt 0:00:08]} dxc4 {[%emt 0:00:06]} 3. Nf3 {[%emt 0:00:06]} Nf6 {[%emt 0:00:09]} 4. e3 {[%emt 0:00:14]} e6 {[%emt 0:00:06]} 5. Bxc4 {[%emt 0:00:06]} c5 {[%emt 0:00:21]} 6. O-O {[%emt 0:00:48]} cxd4 {[%emt 0:00:08]} 7. Nxd4 {[%emt 0:06:35]} a6 {[%emt 0:01:12] D26: Queen's Gambit Accepted: 4 e3 e6 5 Bxc5 c5 sidelines.} 8. Nc3 {[%emt 0:02:57]} Bd6 {[%emt 0:00:21]} 9. h3 {[%emt 0:04:31]} O-O {[%emt 0:03:23] The position is equal.} 10. b3 {[%emt 0:03:35]} b5 {[%emt 0:04:11] [#]} 11. Bd3 $146 {[%emt 0:06:18]} ({Predecessor:} 11. Be2 e5 12. Nf3 e4 13. Nd4 Qe7 14. f4 exf3 15. Bxf3 Ra7 16. Qe1 Qe5 17. Qh4 {0-1 (25) Stoppel,F-Wurdits,R Moesern 1977}) 11... Bb7 {[%emt 0:09:27] Inhibits Ne4.} 12. Bb2 {[%emt 0:02:52]} Nbd7 {[%emt 0:07:43]} 13. Be2 {[%emt 0:05:11][%cal Od4e6] Nxe6! is the strong threat.} Ne5 {[%emt 0:11:13]} 14. f4 {[%emt 0:03:36]} Ng6 {[%emt 0:05:07]} 15. Bf3 {[%emt 0:01:06]} Bxf3 {[%emt 0:08:35]} 16. Qxf3 {[%emt 0:01:39]} Qb6 {[%emt 0:08:12][%cal Od6f4]} 17. Rfd1 {[%emt 0:11:17]} e5 {[%emt 0:03:37]} (17... Rac8 $11) 18. Nf5 $1 $14 {[%emt 0:01:39]} Bc7 {[%emt 0:04:27][%cal Re5f4]} 19. Kh1 {[%emt 0:04:08] White has more active pieces. The black rooks are badly placed.} ({White should play} 19. Rac1 $14) 19... exf4 {[%emt 0:08:55]} 20. exf4 {[%emt 0:01:53][%mdl 64] Remove Defender} Nxf4 $2 {[%emt 0:03:51] [#]} (20... Bxf4 $14 21. Nxg7 Rfd8) 21. Nxg7 $1 $18 {[%emt 0:03:18][%mdl 512]} Be5 {[%emt 0:09:44]} (21... Kxg7 $2 22. Nd5 N4xd5 23. Rxd5 $18) (21... Rad8 22. Nf5) 22. Nd5 {[%emt 0:11:04]} N6xd5 $14 {[%emt 0:04:54] White is slightly better.} 23. Bxe5 {[%emt 0:00:02]} Qe3 {[%emt 0:00:50]} 24. Qxe3 {[%emt 0:17:47]} Nxe3 {[%emt 0:00:15] Weighted Error Value: White=0.15 (very precise) /Black=0.19 (very precise)} 1/2-1/2

[Event "Romanian Superleague 2022"]
[Site "Oradea"]
[Date "2022.09.25"]
[Round "5.7"]
[White "Sumets, Andrey"]
[Black "Berkes, Ferenc"]
[Result "1/2-1/2"]
[ECO "D37"]
[WhiteElo "2513"]
[BlackElo "2651"]
[Annotator "TA"]
[PlyCount "38"]
[EventDate "2022.09.21"]
[EventType "team-tourn"]
[EventCountry "ROU"]
[SourceTitle "playchess.com"]
[Source "ChessBase"]
[SourceQuality "1"]
[TimeControl "40/5400+30:1800+30"]

{[%evp 11,24,16,23,16,11,25,28,18,24,25,25,24,31,12,25]} 1. d4 {[%emt 0:00:02]} Nf6 {[%emt 0:00:07]} 2. Nf3 {[%emt 0:00:14]} d5 {[%emt 0:00:17]} 3. c4 {[%emt 0:00:05]} e6 {[%emt 0:00:07]} 4. Nc3 {[%emt 0:00:05]} Be7 {[%emt 0:00:07]} 5. Bf4 {[%emt 0:00:06]} O-O {[%emt 0:00:12]} 6. e3 {[%emt 0:00:04]} Nbd7 {[%emt 0:00:11]} 7. a3 {[%emt 0:01:15] D37: Queen's Gambit Declined: 5 Bf4.} c5 {[%emt 0:00:37]} 8. cxd5 {[%emt 0:00:05]} Nxd5 {[%emt 0:00:05]} 9. Nxd5 {[%emt 0:00:05]} exd5 {[%emt 0:00:06]} 10. dxc5 {[%emt 0:00:04]} Nxc5 {[%emt 0:00:11]} 11. Be5 {[%emt 0:00:20]} Bf6 {[%emt 0:00:17]} 12. Be2 {[%emt 0:00:46]} Bxe5 {[%emt 0:00:18] [#] An even fight not without its subleties.  Weighted Error Value: White=0.05 (flawless) /Black=0.00 (flawless)} {Predecessor:} 13. Nxe5 $146 Bf5 14. Nf3 Be4 15. O-O Rc8 16. Rc1 Qf6 17. Qd4 Nb3 18. Qxf6 gxf6 19. Rxc8 Rxc8 {1-0 (44) Xu,Y (2554)-Zhao,J (2638) Xinghua 2021} 1/2-1/2

[Event "Romanian Superleague 2022"]
[Site "Oradea"]
[Date "2022.09.25"]
[Round "5.8"]
[White "Lupulescu, Constantin"]
[Black "Cioara, Andrei-Nestor"]
[Result "1/2-1/2"]
[ECO "B01"]
[WhiteElo "2614"]
[BlackElo "2407"]
[Annotator "TA"]
[PlyCount "45"]
[EventDate "2022.09.21"]
[EventType "team-tourn"]
[EventCountry "ROU"]
[SourceTitle "playchess.com"]
[Source "ChessBase"]
[SourceQuality "1"]
[TimeControl "40/5400+30:1800+30"]

{[%evp 11,45,49,53,21,37,35,38,56,45,45,33,44,67,43,47,33,41,35,37,20,38,17,14,0,13,3,5,-19,-18,-17,-14,-12,0,-12,-12,-47]} 1. e4 {[%emt 0:00:03]} d5 {[%emt 0:00:28]} 2. exd5 {[%emt 0:00:04]} Qxd5 {[%emt 0:00:03]} 3. Nc3 {[%emt 0:00:06]} Qa5 {[%emt 0:00:03]} 4. d4 {[%emt 0:00:22]} Nf6 {[%emt 0:00:04]} 5. Nf3 {[%emt 0:00:28][%cal Bg1f3,Bf3e5,Be5c4,Bc4e3][%mdl 32]} Bf5 {[%emt 0:00:11]} 6. Ne5 {[%emt 0:01:44]} c6 {[%emt 0:01:51]} 7. h4 {[%emt 0:00:51] B01: Scandinavian Defence.} Nbd7 {[%emt 0:22:23]} 8. Nc4 {[%emt 0:00:19]} Qc7 {[%emt 0:11:00]} 9. Qf3 {[%emt 0:00:19] White is slightly better.} Bg4 {[%emt 0:01:52]} (9... Bxc2 $2 10. Bf4 e5 11. dxe5 $18) 10. Bf4 {[%emt 0:01:20] [#]} Bxf3 $146 {[%emt 0:01:08]} ({Predecessor:} 10... e5 11. Qe3 Nd5 12. Nxd5 cxd5 13. Bxe5 Nxe5 14. Nxe5 Qa5+ 15. Qd2 Qxd2+ 16. Kxd2 Be6 {1-0 (23) Steindl,J (2265)-Schwabeneder,A (1998) Austria 2021}) 11. Bxc7 {[%emt 0:00:05]} Nd5 {[%emt 0:08:02]} 12. Nxd5 {[%emt 0:20:12] White is more active.} ({Much worse is} 12. gxf3 Nxc7 13. O-O-O e6 $11) 12... Bxd5 {[%emt 0:00:06]} 13. Ne3 {[%emt 0:01:57] [#] aiming for c4.} Rc8 {[%emt 0:18:02]} 14. Bg3 {[%emt 0:08:31] Black must now prevent c4.} h5 {[%emt 0:01:12]} 15. f3 {[%emt 0:03:03] Threatens to win with c4.} Nf6 {[%emt 0:01:29]} 16. c4 {[%emt 0:04:39]} Be6 {[%emt 0:00:09] The position is equal.} 17. Kf2 {[%emt 0:01:19]} g6 {[%emt 0:00:26]} 18. Be2 {[%emt 0:00:48]} Bh6 {[%emt 0:02:18]} 19. b4 {[%emt 0:04:16]} O-O {[%emt 0:00:38]} 20. a4 {[%emt 0:00:24]} Rfd8 {[%emt 0:00:55]} 21. Rhd1 {[%emt 0:00:54]} a6 {[%emt 0:00:24]} 22. a5 {[%emt 0:05:15]} Ne8 {[%emt 0:01:04]} 23. Rac1 {[%emt 0:12:50] Weighted Error Value: White=0.11 (very precise) /Black=0.05 (flawless)} 1/2-1/2

[Event "Romanian Superleague 2022"]
[Site "Oradea"]
[Date "2022.09.25"]
[Round "5.9"]
[White "Stepanencu, Nicodim-Cosmin"]
[Black "Jianu, Vlad-Cristian"]
[Result "1/2-1/2"]
[ECO "B76"]
[WhiteElo "2289"]
[BlackElo "2511"]
[Annotator "TA"]
[PlyCount "46"]
[EventDate "2022.09.21"]
[EventType "team-tourn"]
[EventCountry "ROU"]
[SourceTitle "playchess.com"]
[Source "ChessBase"]
[SourceQuality "1"]
[TimeControl "40/5400+30:1800+30"]

{[%evp 25,32,46,58,44,76,72,56,43,63]} 1. e4 {[%emt 0:00:03]} c5 {[%emt 0:00:10]} 2. Nf3 {[%emt 0:00:04]} d6 {[%emt 0:00:05]} 3. d4 {[%emt 0:00:06]} cxd4 {[%emt 0:00:06]} 4. Nxd4 {[%emt 0:00:02]} Nf6 {[%emt 0:00:08]} 5. Nc3 {[%emt 0:00:47]} g6 {[%emt 0:00:06]} 6. Be3 {[%emt 0:00:03]} Bg7 {[%emt 0:00:06]} 7. f3 {[%emt 0:00:05]} Nc6 {[%emt 0:00:06]} 8. Qd2 {[%emt 0:00:03]} O-O {[%emt 0:00:06]} 9. O-O-O {[%emt 0:07:08]} d5 {[%emt 0:01:20]} 10. exd5 {[%emt 0:01:16]} Nxd5 {[%emt 0:00:07]} 11. Nxc6 {[%emt 0:00:04]} bxc6 {[%emt 0:00:05]} 12. Bd4 {[%emt 0:00:04]} e5 {[%emt 0:00:20]} 13. Bc5 {[%emt 0:00:03]} Re8 {[%emt 0:00:14] is now debated instead of 13...Be6.} 14. Ne4 {[%emt 0:09:04] B76: Sicilian Dragon: Yugoslav Attack, 9 g4 and 9 0-0-0.} Qc7 {[%emt 0:02:07]} 15. h4 {[%emt 0:12:17] White is more active.} f5 {[%emt 0:00:59]} 16. Nd6 {[%emt 0:00:38]} Rd8 {[%emt 0:00:07] [#] Black did not feel at home in the position after the opening.  Weighted Error Value: White=0.00 (flawless) /Black=0.11 (very precise)} {Predecessor:} 17. Nxc8 $146 Raxc8 18. h5 Nb6 19. Bxb6 Rxd2 20. Bc4+ Kf8 21. Bxc7 Rxd1+ 22. Rxd1 Bh6+ 23. Kb1 Rxc7 {½-½ (70) Van Foreest,J (2701)-Abasov,N (2665) Prague 2021} 1/2-1/2

[Event "Romanian Superleague 2022"]
[Site "Oradea"]
[Date "2022.09.25"]
[Round "5.10"]
[White "Parligras, Mircea-Emilian"]
[Black "Vajda, Albert"]
[Result "1-0"]
[ECO "D36"]
[WhiteElo "2560"]
[BlackElo "2305"]
[Annotator "RC"]
[PlyCount "65"]
[EventDate "2022.09.21"]
[EventType "team-tourn"]
[EventCountry "ROU"]
[SourceTitle "playchess.com"]
[Source "ChessBase"]
[SourceQuality "1"]
[TimeControl "40/5400+30:1800+30"]

1. d4 {[%emt 0:00:04]} d5 {[%emt 0:00:32]} 2. c4 {[%emt 0:00:07]} e6 {[%emt 0:00:07]} 3. Nc3 {[%emt 0:00:23]} Nf6 {[%emt 0:00:20]} 4. cxd5 {[%emt 0:00:17]} exd5 {[%emt 0:00:08]} 5. Bg5 {[%emt 0:00:09]} Be7 {[%emt 0:01:15]} 6. e3 {[%emt 0:00:12]} c6 {[%emt 0:00:26]} 7. Bd3 {[%emt 0:00:43]} O-O {[%emt 0:00:43]} 8. Nf3 {[%emt 0:01:05]} Nbd7 {[%emt 0:02:44]} 9. Qc2 {[%emt 0:04:33]} Re8 {[%emt 0:04:11]} 10. O-O {[%emt 0:02:51]} Nf8 {[%emt 0:02:49]} 11. Rab1 {[%emt 0:03:25]} h6 {[%emt 0:10:56]} 12. Bf4 {[%emt 0:07:18]} a5 {[%emt 0:02:13]} 13. a3 {[%emt 0:01:42]} Ne6 {[%emt 0:06:59]} 14. Bg3 {[%emt 0:05:34]} Bd6 {[%emt 0:09:23]} 15. Bh4 {[%emt 0:08:40]} Nc7 {[%emt 0:04:13]} 16. h3 {[%emt 0:08:19]} Bd7 {[%emt 0:05:23]} 17. e4 {[%emt 0:03:28]} dxe4 {[%emt 0:03:44]} 18. Nxe4 {[%emt 0:00:09]} Be7 {[%emt 0:01:54]} 19. Bxf6 {[%emt 0:00:46]} gxf6 {[%emt 0:04:55]} 20. Ng3 {[%emt 0:09:17]} Bf8 {[%emt 0:02:46]} 21. Qd2 {[%emt 0:02:16]} Nd5 {[%emt 0:02:05]} 22. Bc2 {[%emt 0:01:25]} Ne7 {[%emt 0:07:54]} 23. Nh4 {[%emt 0:01:59]} Bg7 {[%emt 0:00:32]} 24. Rfe1 {[%emt 0:02:45]} Be6 {[%emt 0:00:43]} 25. Rbd1 {[%emt 0:07:06]} a4 {[%emt 0:03:46]} 26. Qd3 {[%emt 0:03:46]} f5 {[%emt 0:01:28]} 27. Nh5 {[%emt 0:00:45]} Qd6 {[%emt 0:03:08]} 28. Re3 {[%emt 0:04:16]} Kh8 {[%emt 0:00:09]} 29. Rg3 {[%emt 0:02:42]} Rg8 {[%emt 0:00:10]} 30. d5 {[%emt 0:04:18]} cxd5 {[%emt 0:01:51]} 31. Nxg7 {[%emt 0:02:29]} Rxg7 {[%emt 0:00:06]} 32. Qd4 {[%emt 0:00:06]} Rag8 {[%emt 0:00:07]} 33. Qf6 {[%emt 0:00:26]} 1-0